bitfinex-derivatives/quotes_BTCF0:USTF0_20241015
["timestamp","ask_amount","ask_price","bid_price","bid_amount"]
[1728967752031,0.04714605,65693.0,65692.0,0.57583837]
[1728967755934,0.04714614,65693.0,65692.0,0.57583837]
[1728967757037,0.04714614,65693.0,65692.0,0.45583837]
[1728967758533,0.08034614,65693.0,65692.0,0.45583837]
[1728967759040,0.2479482,65693.0,65692.0,0.45583837]
[1728967759539,0.08034614,65693.0,65692.0,0.45583837]
[1728967759737,0.0336,65693.0,65692.0,0.45583837]
[1728967762235,0.0336,65693.0,65692.0,0.09503837]
[1728967774844,0.08034856,65693.0,65692.0,0.09503837]
[1728967775942,0.08034857,65693.0,65692.0,0.09503837]
[1728967779035,0.0336,65693.0,65692.0,0.09503837]
[1728967782651,0.0004,65693.0,65692.0,0.09503837]
[1728967788750,0.0035,65701.0,65692.0,0.21503837]
[1728967788962,0.0106,65703.0,65698.0,0.557332]
[1728967789149,0.0004,65704.0,65703.0,0.076126]
[1728967789352,0.0004,65704.0,65703.0,0.076526]
[1728967790859,0.0004,65704.0,65703.0,0.077526]
[1728967791363,0.0004,65704.0,65703.0,0.078526]
[1728967792861,0.0004,65704.0,65703.0,0.439326]
[1728967795666,0.0004,65704.0,65703.0,0.45579814]
[1728967795961,0.0004,65704.0,65703.0,0.09499814]
[1728967796167,0.0004,65704.0,65703.0,0.45579814]
[1728967796956,0.0004,65704.0,65703.0,0.09499814]
[1728967799963,0.076525,65704.0,65703.0,0.09499814]
[1728967801270,0.076525,65704.0,65703.0,0.0024]
[1728967801672,0.141825,65704.0,65703.0,0.0024]
[1728967804673,1.641825,65704.0,65703.0,0.0024]
[1728967805473,1.74319398,65704.0,65703.0,0.0024]
[1728967810372,1.74319249,65704.0,65703.0,0.0024]
[1728967813265,1.69644768,65704.0,65703.0,0.0024]
[1728967813580,1.641825,65704.0,65703.0,0.0024]
[1728967818779,0.141825,65704.0,65703.0,0.0024]
[1728967819779,0.141825,65704.0,65703.0,0.078526]
[1728967819780,0.0004,65704.0,65703.0,0.078526]
[1728967820677,0.04714025,65704.0,65703.0,0.078526]
[1728967827681,0.0004,65704.0,65703.0,0.078526]
[1728967828787,0.0012,65707.0,65703.0,0.078526]
[1728967829088,0.0012,65707.0,65706.0,0.196123]
[1728967829283,0.0012,65707.0,65706.0,0.196523]
[1728967830483,0.0012,65707.0,65706.0,0.197523]
[1728967830681,0.0106,65711.0,65706.0,0.2414]
[1728967830988,0.0035,65716.0,65710.0,0.316118]
[1728967831183,0.0039,65721.0,65714.0,0.1204]
[1728967831886,0.0039,65721.0,65714.0,0.196513]
[1728967833398,0.0039,65721.0,65714.0,0.197513]
[1728967834891,0.0039,65721.0,65714.0,0.198513]
[1728967835488,0.05063128,65721.0,65714.0,0.198513]
[1728967835691,0.04753128,65715.0,65714.0,0.21576054]
[1728967836393,0.16811297,65715.0,65714.0,0.21576054]
[1728967837093,0.21484425,65715.0,65714.0,0.21576054]
[1728967837590,0.04753128,65715.0,65714.0,0.21576054]
[1728967837895,0.16776569,65715.0,65714.0,0.21576054]
[1728967838093,0.04753128,65715.0,65714.0,0.21576054]
[1728967839593,0.04753128,65715.0,65714.0,0.21476054]
[1728967839898,0.04753128,65715.0,65714.0,0.21576054]
[1728967842390,0.0008,65715.0,65714.0,0.21576054]
[1728967846400,0.0004,65718.0,65717.0,0.07611]
[1728967846599,0.0004,65718.0,65717.0,0.55731]
[1728967847898,0.0004,65718.0,65717.0,0.55831]
[1728967848299,0.0004,65718.0,65717.0,0.55931]
[1728967850598,0.04712449,65718.0,65717.0,0.55931]
[1728967857505,0.0004,65718.0,65717.0,0.55931]
[1728967859002,0.1204,65718.0,65717.0,0.43931]
[1728967861213,0.1204,65718.0,65717.0,0.07851]
[1728967861517,0.0004,65718.0,65717.0,0.07851]
[1728967863421,0.0004,65721.0,65720.0,0.076106]
[1728967863615,0.0004,65721.0,65720.0,0.076506]
[1728967864003,0.0693,65727.0,65726.0,0.0761]
[1728967864207,0.0658,65727.0,65726.0,0.4373]
[1728967865118,0.0008,65727.0,65726.0,0.4373]
[1728967866705,0.0008,65727.0,65726.0,0.4383]
[1728967866917,0.0008,65727.0,65726.0,0.0785]
[1728967871916,0.0008,65727.0,65726.0,0.09536562]
[1728967872321,0.0008,65727.0,65726.0,0.01926562]
[1728967872513,0.12362215,65727.0,65726.0,0.01926562]
[1728967872716,0.17821895,65727.0,65726.0,0.01926562]
[1728967872924,0.24362215,65727.0,65726.0,0.01926562]
[1728967873225,0.24362215,65727.0,65722.0,0.3608]
[1728967873226,0.196103,65723.0,65722.0,0.3608]
[1728967873424,0.24282715,65723.0,65722.0,0.3608]
[1728967873917,0.29742422,65723.0,65722.0,0.3608]
[1728967874723,0.29742422,65723.0,65722.0,0.3618]
[1728967875121,0.29742422,65723.0,65722.0,0.37903592]
[1728967875928,0.17742422,65723.0,65722.0,0.38003592]
[1728967876219,0.17742422,65723.0,65722.0,0.45613992]
[1728967876220,0.04672415,65723.0,65722.0,0.45613992]
[1728967876633,0.04672415,65724.0,65722.0,0.45613992]
[1728967877016,0.04672415,65724.0,65723.0,0.076503]
[1728967877817,0.04672415,65725.0,65723.0,0.076503]
[1728967878017,0.04672415,65724.0,65723.0,0.076503]
[1728967878622,1.54672415,65725.0,65723.0,0.077503]
[1728967878823,0.16379098,65724.0,65723.0,0.077503]
[1728967879727,0.04672415,65724.0,65723.0,0.078503]
[1728967880113,0.04672415,65725.0,65723.0,0.078503]
[1728967880319,0.04672415,65725.0,65724.0,0.0004]
[1728967880515,0.10132122,65725.0,65724.0,0.0004]
[1728967880719,0.1061,65726.0,65724.0,0.0004]
[1728967880920,0.1061,65726.0,65725.0,0.0004]
[1728967882321,0.1061,65726.0,65725.0,0.0014]
[1728967882824,0.1061,65726.0,65725.0,0.0024]
[1728967885433,0.03,65726.0,65725.0,0.078501]
[1728967885928,0.0012,65727.0,65725.0,0.0024]
[1728967886232,0.0012,65727.0,65726.0,0.1961]
[1728967886422,0.0012,65727.0,65726.0,0.1965]
[1728967886731,0.0012,65727.0,65726.0,0.0765]
[1728967888031,0.0012,65727.0,65726.0,0.0775]
[1728967888918,0.0012,65727.0,65726.0,0.0785]
[1728967890532,0.0012,65727.0,65726.0,0.4393]
[1728967895735,0.04792127,65727.0,65726.0,0.4393]
[1728967902636,0.0012,65727.0,65726.0,0.4393]
[1728967907644,0.45386868,65738.0,65726.0,0.4393]
[1728967907645,0.07835634,65748.0,65738.0,0.076086]
[1728967907840,0.07835634,65748.0,65737.0,0.12]
[1728967908036,0.07835634,65748.0,65736.0,0.12]
[1728967908037,0.00228234,65748.0,65747.0,0.1204]
[1728967908245,0.076071,65751.0,65747.0,0.196475]
[1728967908436,0.076071,65751.0,65750.0,0.0004]
[1728967908632,0.532351,65751.0,65750.0,0.0004]
[1728967909833,0.532351,65751.0,65750.0,0.0014]
[1728967910637,0.75364441,65751.0,65750.0,0.0014]
[1728967910841,0.75364441,65751.0,65750.0,0.0024]
[1728967911731,0.70693296,65751.0,65750.0,0.0024]
[1728967911932,1.79736433,65751.0,65750.0,0.0024]
[1728967912139,2.25364433,65751.0,65750.0,0.0024]
[1728967912745,2.85364433,65751.0,65750.0,0.0024]
[1728967913939,2.85364682,65751.0,65750.0,0.0024]
[1728967914142,2.73364682,65751.0,65750.0,0.0024]
[1728967914446,2.85364682,65751.0,65750.0,0.0024]
[1728967914635,2.25364682,65751.0,65750.0,0.0024]
[1728967915335,2.35097369,65751.0,65750.0,0.0024]
[1728967916735,1.89469316,65751.0,65750.0,0.0024]
[1728967916936,1.74278433,65751.0,65750.0,0.0024]
[1728967917549,1.89469316,65751.0,65750.0,0.0024]
[1728967917744,1.696071,65751.0,65750.0,0.0024]
[1728967921148,2.056871,65751.0,65750.0,0.0024]
[1728967925755,2.15817092,65751.0,65750.0,0.0024]
[1728967927846,0.076078,65745.0,65744.0,0.0106]
[1728967928049,0.076084,65739.0,65738.0,0.0106]
[1728967928245,0.076088,65736.0,65735.0,0.437689]
[1728967928453,0.076088,65736.0,65735.0,0.436889]
[1728967928656,0.12280245,65736.0,65735.0,0.436889]
[1728967929955,0.12280313,65736.0,65735.0,0.436889]
[1728967930262,0.24324256,65736.0,65735.0,0.436889]
[1728967930560,0.17739058,65736.0,65735.0,0.436889]
[1728967930759,0.12280313,65736.0,65735.0,0.437889]
[1728967930957,0.12280313,65736.0,65735.0,0.438889]
[1728967931254,0.12280313,65736.0,65735.0,0.45545809]
[1728967932758,0.076088,65736.0,65735.0,0.45545809]
[1728967933855,0.076088,65736.0,65735.0,0.09465809]
[1728967941162,0.076088,65736.0,65735.0,0.01856909]
[1728967941363,0.076088,65736.0,65735.0,0.002]
[1728967941364,0.12280467,65736.0,65735.0,0.002]
[1728967946366,0.27485506,65736.0,65735.0,0.002]
[1728967947273,0.12280467,65736.0,65735.0,0.002]
[1728967947578,0.27492904,65736.0,65735.0,0.002]
[1728967947776,0.076088,65736.0,65735.0,0.002]
[1728967955381,0.076088,65736.0,65735.0,0.078089]
[1728967956381,0.436883,65740.0,65737.0,0.076086]
[1728967956580,0.436883,65740.0,65739.0,0.0004]
[1728967956977,0.556883,65740.0,65739.0,0.0004]
[1728967957184,0.436883,65740.0,65739.0,0.0004]
[1728967957781,0.436883,65740.0,65739.0,0.0014]
[1728967958279,0.436883,65740.0,65739.0,0.0024]
[1728967962890,0.12280081,65740.0,65739.0,0.0024]
[1728967963893,0.27492518,65740.0,65739.0,0.0024]
[1728967964288,0.12280081,65740.0,65739.0,0.0024]
[1728967965390,0.27492518,65740.0,65739.0,0.0024]
[1728967965601,0.12280081,65740.0,65739.0,0.0024]
[1728967966394,0.27492518,65740.0,65739.0,0.078484]
[1728967967803,0.27492462,65740.0,65739.0,0.078484]
[1728967969884,0.12280025,65740.0,65739.0,0.078484]
[1728967970085,0.076083,65740.0,65739.0,0.078484]
[1728967970605,0.12280025,65740.0,65739.0,0.078484]
[1728967970793,0.076083,65740.0,65739.0,0.078484]
[1728967971694,0.196083,65740.0,65739.0,0.078484]
[1728967973702,0.196083,65740.0,65739.0,0.0024]
[1728967985904,0.24280158,65740.0,65739.0,0.0024]
[1728967988412,0.24280178,65740.0,65739.0,0.0024]
[1728967992607,0.60360178,65740.0,65739.0,0.0024]
[1728967992917,0.556883,65740.0,65739.0,0.0024]
[1728967994810,0.556883,65740.0,65731.0,0.0106]
[1728967994811,0.6008,65740.0,65731.0,0.0106]
[1728967995023,0.076094,65731.0,65730.0,0.0008]
[1728967995205,0.076095,65730.0,65728.0,0.0312]
[1728967995410,0.076095,65730.0,65728.0,0.04735659]
[1728967996209,0.12,65731.0,65728.0,0.04735659]
[1728967996210,0.076096,65729.0,65728.0,0.04735659]
[1728967997223,0.076098,65727.0,65726.0,0.0004]
[1728967997409,0.001,65730.0,65726.0,0.0004]
[1728967997611,0.001,65730.0,65729.0,0.196496]
[1728967997822,0.001,65730.0,65729.0,0.076496]
[1728967998120,0.12,65731.0,65729.0,0.076496]
[1728967998420,0.12,65731.0,65730.0,0.0004]
[1728967999714,0.12,65731.0,65730.0,0.0014]
[1728968000223,0.196094,65731.0,65730.0,0.0014]
[1728968000627,0.197094,65731.0,65730.0,0.0024]
[1728968000927,0.23437094,65731.0,65730.0,0.0024]
[1728968005426,0.2810949,65731.0,65730.0,0.0024]
[1728968008026,0.197094,65731.0,65730.0,0.0024]
[1728968015423,0.557894,65731.0,65730.0,0.0024]
[1728968015927,0.64189704,65731.0,65730.0,0.0024]
[1728968016722,0.60461922,65731.0,65730.0,0.0024]
[1728968017225,0.77879531,65731.0,65730.0,0.0024]
[1728968017425,0.77880431,65731.0,65730.0,0.0024]
[1728968017622,0.74152648,65731.0,65730.0,0.0024]
[1728968017824,0.60461922,65731.0,65730.0,0.0024]
[1728968018027,0.64189676,65731.0,65730.0,0.0024]
[1728968018721,0.77880298,65731.0,65730.0,0.0024]
[1728968020314,0.59517154,65731.0,65730.0,0.0024]
[1728968020514,0.64189622,65731.0,65730.0,0.0024]
[1728968021230,0.77880244,65731.0,65730.0,0.0024]
[1728968021526,0.64189622,65731.0,65730.0,0.0024]
[1728968022832,0.64189634,65731.0,65730.0,0.0024]
[1728968023136,0.557894,65731.0,65730.0,0.0024]
[1728968030929,0.69649029,65731.0,65730.0,0.0024]
[1728968031631,0.8640245,65731.0,65730.0,0.0024]
[1728968032522,0.86402271,65731.0,65730.0,0.0024]
[1728968032923,0.86402211,65731.0,65730.0,0.0024]
[1728968034027,0.33568969,65731.0,65730.0,0.0024]
[1728968034228,0.28109353,65731.0,65730.0,0.0024]
[1728968036639,0.28109438,65731.0,65730.0,0.0024]
[1728968037133,0.39611456,65731.0,65730.0,0.0024]
[1728968037333,0.43339107,65731.0,65730.0,0.0024]
[1728968037836,0.3866675,65731.0,65730.0,0.0024]
[1728968038037,0.197094,65731.0,65730.0,0.0024]
[1728968038737,0.317094,65731.0,65730.0,0.0024]
[1728968039035,0.317094,65731.0,65726.0,0.01652828]
[1728968039036,0.076101,65725.0,65724.0,0.0106]
[1728968039340,0.12,65725.0,65720.0,0.108906]
[1728968039639,0.12,65723.0,65720.0,0.12509539]
[1728968040136,0.076105,65721.0,65720.0,0.01618939]
[1728968040333,0.076107,65720.0,65717.0,0.39424]
[1728968040531,0.12,65718.0,65717.0,0.46951]
[1728968041323,0.076107,65720.0,65717.0,0.3934]
[1728968041534,0.076107,65720.0,65719.0,0.0004]
[1728968041741,0.076107,65720.0,65719.0,0.076508]
[1728968041742,0.196107,65720.0,65719.0,0.076508]
[1728968042630,0.196107,65720.0,65719.0,0.078508]
[1728968043137,0.316107,65720.0,65719.0,0.0024]
[1728968044239,0.316107,65720.0,65717.0,0.01605397]
[1728968044240,0.6018,65720.0,65717.0,0.01605397]
[1728968044535,0.076115,65713.0,65712.0,0.0106]
[1728968044731,0.076115,65713.0,65710.0,0.0008]
[1728968044732,0.24,65713.0,65710.0,0.0008]
[1728968045039,0.24,65713.0,65706.0,0.0106]
[1728968045040,0.076118,65710.0,65706.0,0.0106]
[1728968045333,0.12,65707.0,65706.0,0.092394]
[1728968045541,0.12,65707.0,65706.0,0.076122]
[1728968046130,0.12,65707.0,65706.0,0.079122]
[1728968046326,0.196122,65707.0,65706.0,0.003]
[1728968046741,0.196122,65707.0,65706.0,0.01906989]
[1728968046934,0.076122,65707.0,65706.0,0.003]
[1728968047436,0.196122,65707.0,65706.0,0.003]
[1728968047941,0.196122,65707.0,65704.0,0.3608]
[1728968047942,0.12,65707.0,65704.0,0.3608]
[1728968048136,0.076123,65706.0,65704.0,0.3608]
[1728968048341,0.076123,65706.0,65701.0,0.173628]
[1728968048640,0.12,65702.0,65701.0,0.173628]
[1728968049340,0.24,65702.0,65701.0,0.033]
[1728968049543,0.24,65702.0,65697.0,0.0106]
[1728968049840,0.076135,65696.0,65693.0,0.086738]
[1728968050150,0.12,65694.0,65693.0,0.076138]
[1728968050530,0.24,65694.0,65688.0,0.3722]
[1728968050736,0.24,65689.0,65688.0,0.436944]
[1728968050944,0.12,65689.0,65688.0,0.45304504]
[1728968051240,0.24,65689.0,65688.0,0.45304504]
[1728968051944,0.24,65689.0,65688.0,0.46704504]
[1728968052932,0.12,65689.0,65688.0,0.48004504]
[1728968054641,0.24,65689.0,65688.0,0.48004504]
[1728968056045,0.24,65689.0,65688.0,0.11924504]
[1728968067151,0.076142,65690.0,65689.0,0.076142]
[1728968067347,0.196142,65690.0,65689.0,0.076542]
[1728968068248,0.196142,65690.0,65689.0,0.090542]
[1728968069352,0.196142,65690.0,65689.0,0.14779714]
[1728968069652,0.196142,65690.0,65689.0,0.102542]
[1728968070354,0.196142,65690.0,65689.0,0.14779714]
[1728968071747,0.196142,65690.0,65689.0,0.102542]
[1728968072745,0.316142,65690.0,65689.0,0.0264]
[1728968072941,0.196142,65690.0,65689.0,0.0264]
[1728968073551,0.316142,65690.0,65689.0,0.0264]
[1728968082458,0.676942,65690.0,65689.0,0.0264]
[1728968082660,0.676942,65690.0,65685.0,0.0106]
[1728968082661,0.076146,65686.0,65685.0,0.0106]
[1728968082851,0.076146,65686.0,65682.0,0.3937]
[1728968082852,0.076149,65683.0,65682.0,0.3616]
[1728968083050,0.56269013,65683.0,65682.0,0.20665715]
[1728968083359,0.56269013,65683.0,65680.0,0.0923367]
[1728968083360,0.076152,65681.0,65680.0,0.0923367]
[1728968083569,0.076153,65680.0,65679.0,0.075588]
[1728968084060,0.076153,65680.0,65675.0,0.076158]
[1728968084061,0.076153,65680.0,65678.0,0.075588]
[1728968084252,0.39883913,65683.0,65678.0,0.07553179]
[1728968084253,0.24,65679.0,65678.0,0.07553179]
[1728968084451,0.076155,65678.0,65676.0,0.07553179]
[1728968084648,0.676956,65677.0,65675.0,0.09224403]
[1728968084861,0.676956,65677.0,65676.0,0.11609471]
[1728968085262,0.676956,65677.0,65676.0,0.11609478]
[1728968085447,0.676956,65677.0,65676.0,0.07550305]
[1728968085859,0.676956,65677.0,65676.0,0.08050305]
[1728968086054,0.676956,65677.0,65676.0,0.005]
[1728968086265,0.076159,65675.0,65674.0,0.07550305]
[1728968086453,0.076159,65675.0,65672.0,0.07550305]
[1728968086654,0.24,65673.0,65672.0,0.07550305]
[1728968086862,0.316161,65673.0,65672.0,0.07550305]
[1728968087055,1.816161,65673.0,65672.0,0.07550305]
[1728968087251,1.74,65673.0,65671.0,0.01630747]
[1728968087456,1.74,65673.0,65670.0,0.15166705]
[1728968087457,0.076162,65672.0,65670.0,0.15166705]
[1728968087759,0.3608,65671.0,65670.0,0.076164]
[1728968089265,0.3618,65671.0,65670.0,0.076164]
[1728968089765,0.3618,65671.0,65670.0,0.13649476]
[1728968090266,0.001,65671.0,65670.0,0.13649439]
[1728968090564,0.3628,65671.0,65670.0,0.1620517]
[1728968091158,0.3628,65671.0,65670.0,0.1469567]
[1728968091359,0.3628,65671.0,65670.0,0.10172131]
[1728968093960,0.438963,65671.0,65670.0,0.10172131]
[1728968096563,0.558963,65671.0,65670.0,0.10172131]
[1728968098156,0.558963,65671.0,65670.0,0.1620517]
[1728968098356,0.558963,65671.0,65670.0,0.10172131]
[1728968102668,0.558963,65671.0,65670.0,0.1620517]
[1728968106172,0.558963,65671.0,65670.0,0.10172131]
[1728968108368,0.438963,65671.0,65670.0,0.10172131]
[1728968108564,0.558963,65671.0,65670.0,0.10172131]
[1728968112479,0.436951,65682.0,65670.0,0.58252131]
[1728968112675,0.1235,65681.0,65680.0,0.076553]
[1728968112971,0.12,65681.0,65680.0,0.076553]
[1728968113473,0.12,65681.0,65680.0,0.28321268]
[1728968113775,0.121,65681.0,65680.0,0.19263821]
[1728968114174,0.122,65681.0,65680.0,0.19263821]
[1728968114677,0.123,65681.0,65680.0,0.19263821]
[1728968114877,0.003,65681.0,65680.0,0.28321268]
[1728968115678,0.123,65681.0,65680.0,0.28321268]
[1728968116070,0.122,65681.0,65680.0,0.28421268]
[1728968116269,0.122,65681.0,65680.0,0.19363821]
[1728968117076,0.122,65681.0,65680.0,0.21422945]
[1728968118876,0.4828,65681.0,65680.0,0.21422945]
[1728968119071,0.122,65681.0,65680.0,0.21422945]
[1728968119379,0.4828,65681.0,65680.0,0.21422945]
[1728968120577,0.4828,65681.0,65680.0,0.28976285]
[1728968121080,0.4828,65681.0,65680.0,0.17367764]
[1728968121277,0.4828,65681.0,65680.0,0.09814424]
[1728968122476,0.4828,65681.0,65680.0,0.10014424]
[1728968123373,0.4828,65681.0,65680.0,0.09814424]
[1728968125083,0.3628,65681.0,65680.0,0.09814424]
[1728968125384,0.4828,65681.0,65680.0,0.09814424]
[1728968129981,0.122,65681.0,65680.0,0.09814424]
[1728968130187,0.4828,65681.0,65680.0,0.09814424]
[1728968134287,0.3628,65681.0,65680.0,0.09814424]
[1728968134782,0.002,65681.0,65680.0,0.09814424]
[1728968135287,0.122,65681.0,65680.0,0.09814424]
[1728968136395,0.08389198,65681.0,65680.0,0.09814424]
[1728968136600,0.12,65685.0,65680.0,0.02199124]
[1728968136792,0.12,65685.0,65684.0,0.076548]
[1728968136982,0.436945,65688.0,65687.0,0.076145]
[1728968137188,0.556945,65688.0,65687.0,0.076545]
[1728968137892,0.4808,65688.0,65687.0,0.076545]
[1728968138793,0.4868,65688.0,65687.0,0.077545]
[1728968140193,0.4958,65688.0,65687.0,0.078545]
[1728968140386,0.4958,65688.0,65687.0,0.13897166]
[1728968141500,0.4958,65688.0,65687.0,0.078545]
[1728968142388,0.571944,65688.0,65687.0,0.078545]
[1728968143490,0.211144,65688.0,65687.0,0.078545]
[1728968143893,0.571944,65688.0,65687.0,0.09889882]
[1728968146103,0.4958,65688.0,65687.0,0.09889882]
[1728968147091,0.691944,65688.0,65687.0,0.02275382]
[1728968150789,0.691944,65688.0,65687.0,0.0832771]
[1728968150995,0.691944,65688.0,65687.0,0.02275382]
[1728968151503,2.191944,65688.0,65687.0,0.0024]
[1728968153605,2.191944,65688.0,65687.0,0.04780134]
[1728968153802,2.191944,65688.0,65687.0,0.0024]
[1728968156402,2.191944,65688.0,65687.0,0.04780215]
[1728968157613,2.191944,65688.0,65687.0,0.0024]
[1728968163927,1.831144,65688.0,65687.0,0.0024]
[1728968164129,2.552744,65688.0,65687.0,0.0024]
[1728968165325,2.552744,65688.0,65687.0,0.04780604]
[1728968165820,2.552744,65688.0,65687.0,0.0024]
[1728968166225,2.552744,65688.0,65687.0,0.04780666]
[1728968167224,2.552744,65688.0,65687.0,0.0024]
[1728968167629,2.552744,65688.0,65687.0,0.04780666]
[1728968168029,2.552744,65688.0,65687.0,0.0024]
[1728968168422,2.552744,65688.0,65687.0,0.04781188]
[1728968168822,2.552744,65688.0,65687.0,0.0024]
[1728968169634,2.552744,65688.0,65687.0,0.04782065]
[1728968171538,2.552744,65688.0,65687.0,0.0024]
[1728968172636,1.831144,65688.0,65687.0,0.0024]
[1728968172837,2.552744,65688.0,65687.0,0.0024]
[1728968175226,2.4766,65688.0,65681.0,0.0106]
[1728968175440,2.4766,65688.0,65678.0,0.0106]
[1728968175441,0.076152,65681.0,65678.0,0.0106]
[1728968175644,0.076152,65681.0,65677.0,0.076156]
[1728968175645,0.196152,65681.0,65677.0,0.076156]
[1728968176529,0.196152,65681.0,65679.0,0.076154]
[1728968178531,0.198152,65681.0,65679.0,0.076154]
[1728968180529,0.558952,65681.0,65679.0,0.076154]
[1728968183029,0.558952,65681.0,65677.0,0.02023922]
[1728968183632,0.558952,65681.0,65677.0,0.09639522]
[1728968185341,0.558952,65681.0,65678.0,0.076155]
[1728968194038,0.558952,65681.0,65677.0,0.02023922]
[1728968194850,0.558952,65681.0,65676.0,0.076157]
[1728968195551,0.558952,65681.0,65676.0,0.09693926]
[1728968198143,0.60571196,65681.0,65676.0,0.09693926]
[1728968198345,0.75799888,65681.0,65676.0,0.09693926]
[1728968199046,0.60571196,65681.0,65676.0,0.09693926]
[1728968200249,0.75799888,65681.0,65676.0,0.09693926]
[1728968201860,0.75807151,65681.0,65676.0,0.09693926]
[1728968202050,0.60571196,65681.0,65676.0,0.09693926]
[1728968202250,0.75807369,65681.0,65676.0,0.09693926]
[1728968202450,0.60571196,65681.0,65676.0,0.09693926]
[1728968202645,0.75808092,65681.0,65676.0,0.09693926]
[1728968203360,0.75808092,65681.0,65677.0,0.076156]
[1728968203650,0.75808092,65681.0,65677.0,0.12158474]
[1728968203651,0.198152,65681.0,65677.0,0.12158474]
[1728968203950,0.558952,65681.0,65677.0,0.12158474]
[1728968207250,0.558952,65681.0,65679.0,0.04542874]
[1728968207458,0.198152,65681.0,65679.0,0.04542874]
[1728968207758,0.558952,65681.0,65679.0,0.04542874]
[1728968207959,0.198152,65681.0,65679.0,0.04542874]
[1728968208156,0.558952,65681.0,65679.0,0.04542874]
[1728968210550,0.198152,65681.0,65678.0,0.076154]
[1728968210757,0.558952,65681.0,65678.0,0.076154]
[1728968211257,0.198152,65681.0,65678.0,0.076154]
[1728968211457,0.558952,65681.0,65678.0,0.076154]
[1728968216861,0.6057118,65681.0,65678.0,0.076154]
[1728968218550,0.558952,65681.0,65678.0,0.076154]
[1728968226362,0.558952,65681.0,65676.0,0.02078226]
[1728968226567,0.558952,65681.0,65677.0,0.076156]
[1728968228765,0.558952,65681.0,65676.0,0.02078226]
[1728968229155,0.076159,65675.0,65674.0,0.0106]
[1728968229365,0.4808,65675.0,65672.0,0.04542874]
[1728968229667,0.12,65674.0,65672.0,0.04542874]
[1728968229964,1.5,65673.0,65672.0,0.0660021]
[1728968230266,1.5,65673.0,65672.0,0.02057336]
[1728968230458,1.5,65673.0,65671.0,0.12159174]
[1728968230658,0.076162,65672.0,65671.0,0.12159174]
[1728968231263,0.076162,65672.0,65671.0,0.076163]
[1728968231969,0.077162,65672.0,65671.0,0.084163]
[1728968232157,0.077162,65672.0,65671.0,0.092163]
[1728968232769,0.078162,65672.0,65671.0,0.092163]
[1728968233463,0.078162,65672.0,65671.0,0.11231217]
[1728968240568,0.078162,65672.0,65671.0,0.15774091]
[1728968242076,0.078162,65672.0,65671.0,0.03614917]
[1728968242981,0.438962,65672.0,65671.0,0.016]
[1728968244575,1.938962,65672.0,65671.0,0.016]
[1728968245962,0.076168,65667.0,65666.0,0.0106]
[1728968246269,0.676968,65667.0,65661.0,0.07668556]
[1728968246471,0.316174,65662.0,65661.0,0.07668556]
[1728968246664,0.316174,65662.0,65661.0,0.06608556]
[1728968247373,0.316174,65662.0,65661.0,0.02065682]
[1728968247568,0.24,65662.0,65660.0,0.04542874]
[1728968247768,0.436975,65661.0,65660.0,0.04542874]
[1728968248375,0.436975,65661.0,65658.0,0.076178]
[1728968248376,0.436975,65661.0,65659.0,0.04542874]
[1728968248568,0.12,65660.0,65658.0,0.076178]
[1728968248773,0.12,65660.0,65658.0,0.09710826]
[1728968249476,0.12,65660.0,65659.0,0.076177]
[1728968250772,0.12,65660.0,65659.0,0.083177]
[1728968250984,0.4808,65660.0,65659.0,0.083177]
[1728968251164,0.4808,65660.0,65659.0,0.076177]
[1728968251369,0.4818,65660.0,65659.0,0.083177]
[1728968251680,0.558976,65660.0,65659.0,0.007]
[1728968252770,0.678976,65660.0,65659.0,0.007]
[1728968254373,0.076177,65659.0,65658.0,0.02093026]
[1728968254681,0.6018,65660.0,65655.0,0.076182]
[1728968254682,0.076178,65658.0,65655.0,0.076182]
[1728968254884,0.12,65657.0,65655.0,0.076182]
[1728968255075,0.12,65657.0,65653.0,0.0106]
[1728968255076,0.12,65657.0,65656.0,0.076181]
[1728968257180,0.121,65657.0,65656.0,0.081181]
[1728968257383,0.122,65657.0,65656.0,0.081181]
[1728968264077,0.19818,65657.0,65656.0,0.081181]
[1728968268390,0.19818,65657.0,65656.0,0.005]
[1728968285491,0.07818,65657.0,65656.0,0.005]
[1728968287900,0.07818,65657.0,65656.0,0.081181]
[1728968287901,0.002,65657.0,65656.0,0.081181]
[1728968292505,0.3628,65657.0,65656.0,0.081181]
[1728968293609,0.076186,65651.0,65650.0,0.0106]
[1728968293813,0.076186,65651.0,65641.0,0.0041]
[1728968293814,0.076192,65646.0,65645.0,0.0106]
[1728968294109,0.076193,65645.0,65644.0,0.12173718]
[1728968294301,0.196193,65645.0,65644.0,0.076194]
[1728968294513,0.196193,65645.0,65644.0,0.12173718]
[1728968295201,0.076193,65645.0,65644.0,0.12171339]
[1728968295402,0.076193,65645.0,65644.0,0.12371339]
[1728968296008,0.076193,65645.0,65644.0,0.078194]
[1728968296607,0.076193,65645.0,65644.0,0.002]
[1728968297007,0.108493,65645.0,65644.0,0.002]
[1728968297202,0.12897613,65645.0,65644.0,0.002]
[1728968301110,0.85057613,65645.0,65644.0,0.002]
[1728968302106,0.85057613,65645.0,65641.0,0.0106]
[1728968302313,0.0762,65639.0,65638.0,0.0106]
[1728968302517,0.076204,65636.0,65633.0,0.0106]
[1728968302705,0.076205,65635.0,65632.0,0.076208]
[1728968303025,0.12,65633.0,65632.0,0.09692597]
[1728968303910,0.196207,65633.0,65632.0,0.09692597]
[1728968304106,0.316207,65633.0,65632.0,0.09692597]
[1728968304305,0.196207,65633.0,65632.0,0.09692597]
[1728968304608,0.198207,65633.0,65632.0,0.09692597]
[1728968306413,0.318207,65633.0,65632.0,0.09692597]
[1728968306706,0.198207,65633.0,65632.0,0.09692597]
[1728968308005,0.679007,65633.0,65632.0,0.02071797]